bitfinex-derivatives/quotes_SOLF0:USTF0_20250106
["timestamp","ask_amount","ask_price","bid_price","bid_amount"]
[1736127094983,2.3509,212.74,212.67,2.3516]
[1736127096580,2.72,212.76,212.74,97.6491]
[1736127097181,1.4802,212.81,212.74,97.6491]
[1736127097383,1.4693,212.82,212.74,97.6491]
[1736127097586,2.3507,212.75,212.74,97.6491]
[1736127100989,5.0707,212.75,212.74,97.6491]
[1736127103187,5.0707,212.75,212.74,95.342]
[1736127103391,3.4742658,212.75,212.63,1.5345]
[1736127103685,2.72,212.75,212.63,1.5345]
[1736127104594,18.69357785,212.73,212.48,26.24670944]
[1736127104786,18.69357785,212.73,212.55,1.4323]
[1736127104787,10.76888397,212.72,212.55,1.4323]
[1736127105000,11.68793108,212.7,212.56,11.68793108]
[1736127105186,2.3522,212.62,212.56,11.68793108]
[1736127107388,2.72,212.64,212.56,11.68793108]
[1736127107589,2.72,212.64,212.55,1.4323]
[1736127107797,2.3522,212.62,212.55,1.4323]
[1736127107995,2.72,212.64,212.55,1.4323]
[1736127108596,2.3526,212.59,212.55,1.4323]
[1736127108893,2.72,212.64,212.55,1.4323]
[1736127110497,2.3525,212.59,212.55,1.4323]
[1736127114095,2.3526,212.58,212.55,1.4323]
[1736127114303,2.72,212.64,212.55,1.4323]
[1736127115494,2.3527,212.58,212.55,1.4323]
[1736127120806,2.3529,212.55,212.5,11.68793108]
[1736127121702,2.353,212.54,212.5,11.68793108]
[1736127121904,2.72,212.58,212.48,1.4804]
[1736127122402,2.3533,212.52,212.48,1.4804]
[1736127124313,2.72,212.58,212.5,11.68793108]
[1736127124899,1.5011,212.63,212.51,2.3533]
[1736127125100,2.72,212.59,212.51,2.3533]
[1736127125506,2.72,212.59,212.53,11.68793108]
[1736127126395,2.3526,212.58,212.53,11.68793108]
[1736127127807,2.72,212.59,212.53,11.68793108]
[1736127127808,2.3528,212.57,212.53,11.68793108]
[1736127128403,2.3528,212.57,212.51,2.3534]
[1736127128607,2.3528,212.56,212.5,14.04143108]
[1736127130302,2.3527,212.58,212.52,2.3532]
[1736127130502,2.3527,212.58,212.5,11.68793108]
[1736127130714,2.3527,212.58,212.53,11.68793108]
[1736127132107,11.68793108,212.67,212.53,11.68793108]
[1736127132304,3.47486016,212.66,212.56,11.68793108]
[1736127132499,2.72,212.66,212.57,1.4202]
[1736127132902,2.352,212.64,212.57,1.4202]
[1736127133210,2.72,212.64,212.57,1.4202]
[1736127133411,5.072,212.64,212.57,3.7729]
[1736127133609,2.352,212.64,212.57,3.7729]
[1736127133805,5.072,212.64,212.57,3.7729]
[1736127136110,2.352,212.64,212.57,3.7729]
[1736127136312,11.68793108,212.7,212.59,2.3525]
[1736127136313,2.3518,212.66,212.59,2.3525]
[1736127136507,2.72,212.65,212.59,2.3525]
[1736127136707,2.3518,212.66,212.59,2.3525]
[1736127136708,2.72,212.66,212.59,11.68793108]
[1736127137016,2.72,212.67,212.59,11.68793108]
[1736127137307,2.72,212.68,212.59,11.68793108]
[1736127137610,5.0716,212.68,212.61,2.3523]
[1736127138615,2.72,212.68,212.59,11.68793108]
[1736127139413,2.352,212.64,212.58,3.7658]
[1736127139809,2.352,212.64,212.58,1.4133]
[1736127140005,2.72,212.68,212.57,2.9271]
[1736127140212,14.40793108,212.67,212.57,1.4202]
[1736127140415,2.72,212.66,212.57,1.4202]
[1736127142210,2.3523,212.61,212.57,1.4202]
[1736127142414,5.0723,212.61,212.57,1.4202]
[1736127143919,2.72,212.61,212.57,13.10813108]
[1736127144120,2.72,212.65,212.57,15.46083108]
[1736127144322,2.72,212.65,212.57,1.4202]
[1736127144523,2.3524,212.61,212.57,1.4202]
[1736127144819,11.68793108,212.74,212.51,11.68793108]
[1736127144820,2.72,212.6,212.51,11.68793108]
[1736127145023,2.72,212.59,212.51,11.68793108]
[1736127145224,2.72,212.59,212.51,14.04133108]
[1736127145727,2.3526,212.58,212.51,14.04133108]
[1736127146918,2.3527,212.57,212.51,14.04133108]
[1736127149031,2.3527,212.57,212.51,11.68793108]
[1736127149224,2.3527,212.57,212.52,2.3532]
[1736127149927,2.3526,212.58,212.52,2.3532]
[1736127153761,2.3527,212.57,212.51,14.04133108]
[1736127154933,2.72,212.6,212.49,1.4396]
[1736127155231,11.68793108,212.55,212.42,26.24670944]
[1736127155428,2.3536,212.49,212.43,1.433]
[1736127156634,2.3535,212.51,212.43,1.433]
[1736127157235,2.72,212.54,212.43,3.7872]
[1736127157435,2.3535,212.5,212.43,3.7872]
[1736127157830,2.72,212.54,212.43,1.433]
[1736127158034,2.72,212.54,212.46,2.3539]
[1736127158736,2.3533,212.52,212.46,2.3539]
[1736127158934,2.3533,212.52,212.45,2.354]
[1736127159727,2.3535,212.5,212.43,3.7871]
[1736127159932,2.72,212.54,212.43,1.433]
[1736127160743,2.3535,212.5,212.43,3.7872]
[1736127161238,2.72,212.54,212.43,1.433]
[1736127161439,2.72,212.54,212.45,2.3539]
[1736127162533,11.68793108,212.58,212.43,1.433]
[1736127162738,2.72,212.57,212.48,11.68793108]
[1736127163334,1.4284,212.59,212.48,11.68793108]
[1736127163539,5.0726,212.58,212.52,2.3532]
[1736127164340,5.0726,212.58,212.51,2.3534]
[1736127164639,2.72,212.58,212.48,11.68793108]
[1736127165158,2.72,212.58,212.45,11.68793108]
[1736127166541,2.3532,212.53,212.47,2.3538]
[1736127166737,5.0732,212.53,212.47,2.3538]
[1736127167137,2.72,212.53,212.48,2.3537]
[1736127167833,2.72,212.53,212.45,11.68793108]
[1736127168137,5.0732,212.53,212.47,2.3538]
[1736127169741,2.72,212.53,212.47,2.3538]
[1736127170040,2.3533,212.52,212.47,2.3538]
[1736127171741,2.72,212.53,212.43,1.433]
[1736127172331,2.3538,212.48,212.43,3.7872]
[1736127173033,2.72,212.53,212.43,1.433]
[1736127173235,2.3534,212.52,212.45,11.68793108]
[1736127174036,2.3534,212.52,212.47,2.3537]
[1736127174639,2.3534,212.51,212.46,2.3539]
[1736127175631,2.72,212.53,212.46,2.3539]
[1736127175632,2.3535,212.5,212.46,2.3539]
[1736127177446,2.72,212.53,212.43,1.433]
[1736127177633,14.40793108,212.53,212.43,1.433]
[1736127178950,2.3539,212.47,212.43,1.433]
[1736127179144,2.72,212.46,212.43,1.433]
[1736127180240,2.72,212.46,212.43,3.7873]
[1736127181039,2.72,212.46,212.43,1.433]
[1736127181246,2.72,212.5,212.43,1.433]
[1736127181439,2.72,212.51,212.43,1.433]
[1736127181639,1.537,212.58,212.45,11.68793108]
[1736127181855,2.72,212.57,212.49,2.3535]
[1736127182338,2.3529,212.55,212.48,2.3537]
[1736127184042,2.72,212.57,212.48,11.68793108]
[1736127184247,5.0728,212.57,212.48,11.68793108]
[1736127184642,2.72,212.57,212.48,11.68793108]
[1736127185547,2.72,212.57,212.45,11.68793108]
[1736127185845,2.3534,212.51,212.45,11.68793108]
[1736127186349,2.72,212.52,212.45,11.68793108]
[1736127186543,2.72,212.52,212.47,2.3538]
[1736127188249,2.72,212.52,212.48,2.3537]
[1736127189355,3.53107778,212.6,212.48,11.68793108]
[1736127189550,2.72,212.59,212.48,11.68793108]
[1736127190048,2.3527,212.57,212.51,2.3533]
[1736127190752,2.72,212.56,212.51,2.3533]
[1736127192050,2.72,212.56,212.49,2.3535]
[1736127192551,2.72,212.56,212.5,2.3535]
[1736127192951,2.72,212.56,212.48,11.68793108]
[1736127193343,1.3918,212.63,212.51,11.68793108]
[1736127193543,2.72,212.62,212.52,1.4135]
[1736127194053,2.3526,212.59,212.52,1.4135]
[1736127194949,2.3526,212.59,212.52,3.7667]
[1736127196249,10.05666257,212.64,212.54,11.68793108]
[1736127196452,195.462114,212.74,212.57,11.68793108]
[1736127196453,2.72,212.63,212.57,11.68793108]
[1736127196650,2.72,212.64,212.57,11.68793108]
[1736127197354,5.072,212.64,212.57,14.04063108]
[1736127198550,5.072,212.64,212.58,2.3526]
[1736127199656,2.7,212.65,212.55,5.2613]
[1736127199954,2.7,212.65,212.52,13.10143108]
[1736127200452,2.7,212.65,212.52,15.45463108]
[1736127200955,2.3525,212.6,212.52,15.45463108]
[1736127201154,2.7,212.59,212.52,15.45463108]
[1736127201653,5.0525,212.59,212.52,15.45463108]
[1736127202952,5.0525,212.59,212.53,2.3531]
[1736127203153,2.7,212.6,212.52,13.10143108]
[1736127203354,5.0524,212.6,212.55,11.68793108]
[1736127203756,2.7,212.6,212.55,11.68793108]
[1736127203957,2.7,212.6,212.56,2.3527]
[1736127204854,2.3523,212.62,212.57,2.3527]
[1736127205059,2.352,212.64,212.58,11.68793108]
[1736127206553,2.352,212.64,212.58,14.04043108]
[1736127207759,2.352,212.64,212.59,2.3525]
[1736127209156,2.7,212.65,212.59,2.3525]
[1736127209451,5.0518,212.65,212.59,2.3525]
[1736127209660,2.7,212.65,212.58,11.68793108]
[1736127209860,2.352,212.63,212.58,11.68793108]
[1736127210059,2.7,212.65,212.58,11.68793108]
[1736127210862,2.7,212.65,212.55,11.68793108]
[1736127211160,2.3523,212.62,212.55,14.04083108]
[1736127211357,2.7,212.65,212.55,11.68793108]
[1736127211553,2.7,212.65,212.52,13.10143108]
[1736127212564,2.3526,212.59,212.52,15.45463108]
[1736127212866,2.7,212.58,212.52,15.45463108]
[1736127213262,2.7,212.6,212.55,2.3529]
[1736127213562,2.7,212.6,212.55,14.04083108]
[1736127217361,2.7,212.6,212.55,11.68793108]
[1736127217671,5.0525,212.6,212.55,11.68793108]
[1736127220467,5.0525,212.6,212.54,2.353]
[1736127221068,2.7,212.6,212.52,1.4135]
[1736127221570,2.3528,212.57,212.52,1.4135]
[1736127222074,2.7,212.6,212.52,1.4135]
[1736127222484,11.68793108,212.58,212.47,3.0212]
[1736127223679,2.3533,212.52,212.47,3.0212]
[1736127223864,5.0533,212.52,212.47,3.0212]
[1736127224374,2.7,212.52,212.45,13.12283108]
[1736127224573,2.3534,212.51,212.45,15.47683108]
[1736127225777,2.3535,212.5,212.45,15.47683108]
[1736127226775,2.7,212.52,212.45,1.4349]
[1736127227076,2.7,212.52,212.42,11.68793108]
[1736127227475,2.354,212.46,212.42,11.68793108]
[1736127230076,2.354,212.45,212.39,13.16913108]
[1736127231475,2.354,212.45,212.39,15.52373108]
[1736127232477,5.0539,212.47,212.41,2.3544]
[1736127232666,11.68793108,212.58,212.42,11.68793108]
[1736127232868,3.47402133,212.57,212.45,11.68793108]
[1736127233175,0.75402133,212.56,212.45,11.68793108]
[1736127233377,0.75402133,212.56,212.45,14.04193108]
[1736127233574,2.72,212.57,212.45,14.04193108]
[1736127233776,2.3534,212.52,212.45,14.04193108]
[1736127233977,2.72,212.51,212.45,14.04193108]
[1736127234572,5.0734,212.51,212.45,14.04193108]
[1736127236575,2.353,212.55,212.48,2.3537]
[1736127236875,2.72,212.54,212.48,14.04163108]
[1736127237076,2.72,212.56,212.48,11.68793108]
[1736127237277,2.72,212.56,212.49,2.3536]
[1736127237475,2.72,212.56,212.48,11.68793108]
[1736127238476,2.3529,212.55,212.48,11.68793108]
[1736127239478,2.3533,212.52,212.48,11.68793108]
[1736127239779,2.3533,212.52,212.45,11.68793108]
[1736127240181,2.3533,212.52,212.46,2.3539]
[1736127240379,2.3532,212.53,212.46,2.3539]
[1736127240573,2.3532,212.53,212.45,11.68793108]
[1736127240768,2.7,212.54,212.49,2.3536]
[1736127240977,2.7,212.55,212.49,2.3536]
[1736127241170,2.7,212.55,212.49,3.8395]
[1736127242081,2.7,212.55,212.49,1.4859]
[1736127242281,2.7,212.55,212.5,2.3535]
[1736127246988,2.7,212.55,212.49,4.3524]
[1736127247181,2.3529,212.56,212.51,2.3534]
[1736127247581,2.7,212.57,212.52,2.3533]
[1736127247888,2.3527,212.58,212.52,2.3533]
[1736127248085,2.7,212.57,212.52,2.3533]
[1736127248280,1.4151,212.7,212.51,11.68793108]
[1736127248582,2.7,212.62,212.54,11.68793108]
[1736127249585,5.0522,212.62,212.56,2.3528]
[1736127250080,5.0522,212.62,212.49,4.3524]
[1736127250081,14.38793108,212.62,212.49,4.3524]
[1736127250282,14.38793108,212.62,212.49,16.04033108]
[1736127251485,2.3526,212.58,212.52,2.3532]
[1736127251788,14.38793108,212.62,212.49,16.04033108]
[1736127253187,7.48452765,212.59,212.53,2.3531]
[1736127253988,10.18452765,212.59,212.53,2.3531]
[1736127254583,7.48452765,212.57,212.51,51.0]
[1736127255290,2.3529,212.56,212.51,51.0]
[1736127256789,2.3529,212.56,212.5,9.83792765]
[1736127257288,2.7,212.58,212.53,2.3531]
[1736127257592,2.7,212.58,212.54,7.48452765]
[1736127257794,2.7,212.58,212.54,9.83752765]
[1736127258294,2.3525,212.6,212.54,9.83752765]
[1736127259089,2.3525,212.6,212.54,2.353]
[1736127259393,2.3526,212.58,212.53,2.3531]
[1736127259592,14.39338571,212.62,212.5,2.7]
[1736127259987,14.39338571,212.62,212.49,4.3524]
[1736127260386,2.3527,212.57,212.49,4.3524]
[1736127260595,2.3527,212.57,212.51,2.3534]
[1736127263596,2.3528,212.56,212.49,6.7059]
[1736127263894,2.7,212.57,212.49,4.3524]
[1736127264399,2.3529,212.55,212.5,2.3535]
[1736127266293,2.3531,212.54,212.49,4.3524]
[1736127267496,2.3531,212.54,212.49,6.706]
[1736127268795,2.7,212.57,212.49,4.3524]
[1736127268995,2.3529,212.55,212.5,2.3535]
[1736127271398,2.3532,212.53,212.49,1.4859]
[1736127271597,2.7,212.57,212.49,1.4859]
[1736127272194,2.7,212.57,212.5,51.0]
[1736127272499,2.3534,212.52,212.5,51.0]
[1736127274504,2.7,212.57,212.5,51.0]
[1736127275004,2.7,212.59,212.54,2.353]
[1736127275393,2.7,212.59,212.51,14.66948571]
[1736127275599,2.7,212.61,212.56,2.3527]
[1736127275800,2.7,212.61,212.51,14.66948571]
[1736127276002,5.0523,212.61,212.51,14.66948571]
[1736127276198,2.3523,212.61,212.51,14.66948571]
[1736127276415,2.7,212.62,212.54,11.69338571]
[1736127277305,2.7,212.64,212.54,11.69338571]
[1736127277497,2.3519,212.64,212.57,11.69338571]
[1736127277698,2.7,212.66,212.57,11.69338571]
[1736127278005,2.7,212.66,212.58,1.4191]
[1736127278206,2.7,212.67,212.58,1.4191]
[1736127278504,5.0516,212.67,212.58,3.7716]
[1736127278710,2.7,212.67,212.58,3.7716]
[1736127279007,2.3518,212.65,212.61,7.479118]
[1736127279305,7.479118,212.66,212.59,7.479118]
[1736127279904,2.3522,212.62,212.59,7.479118]
[1736127281105,2.3522,212.62,212.58,1.4191]
[1736127284513,2.3523,212.61,212.56,11.6884297]
[1736127287118,2.3525,212.59,212.56,11.6884297]
[1736127287314,2.3525,212.59,212.53,15.4811297]
[1736127287616,2.7,212.62,212.53,13.1280297]
[1736127287813,2.3524,212.61,212.54,2.353]
[1736127288317,2.7,212.62,212.54,2.353]
[1736127288518,2.3524,212.6,212.55,2.3529]
[1736127292212,2.3524,212.6,212.56,2.3528]
[1736127292916,2.7,212.66,212.56,11.6884297]
[1736127293116,2.7,212.66,212.59,11.6884297]
[1736127294419,2.352,212.64,212.59,14.0408297]
[1736127295318,2.3521,212.63,212.57,2.3526]
[1736127297213,2.7,212.66,212.57,2.3526]
[1736127297416,2.3522,212.62,212.57,2.3526]
[1736127298117,2.7,212.66,212.56,11.6884297]
[1736127299420,10.05696128,212.71,212.62,11.6884297]
[1736127299719,140.36503728,212.76,212.68,11.6884297]
[1736127299918,130.308076,212.76,212.69,1.475]
[1736127300226,130.308076,212.76,212.71,2.3511]
[1736127300924,130.308076,212.76,212.7,2.3513]
[1736127301324,2.3505,212.77,212.7,2.3513]
[1736127302225,2.7,212.8,212.69,1.475]
[1736127302625,12.75366496,212.8,212.69,1.475]
[1736127302826,0.75457486,212.79,212.69,1.475]
[1736127303026,7.47330418,212.77,212.7,7.47330418]
[1736127303828,2.3509,212.74,212.7,7.47330418]
[1736127304628,2.3511,212.72,212.69,7.47330418]
[1736127304827,10.17330418,212.75,212.69,7.47330418]
[1736127305231,2.3511,212.72,212.69,7.47330418]
[1736127305435,144.448076,212.88,212.71,7.47330418]
[1736127305436,10.03752902,212.77,212.71,7.47330418]
[1736127305732,5.87684275,212.87,212.79,2.3502]
[1736127305940,7.47330418,212.87,212.8,7.47330418]
[1736127306130,11.0001058,212.87,212.8,7.47330418]
[1736127306323,2.3497,212.84,212.8,7.47330418]
[1736127306545,10.17330418,212.83,212.75,7.47330418]
[1736127307031,2.7,212.83,212.72,11.6714676]
[1736127308233,2.3505,212.77,212.72,11.6714676]
[1736127309437,2.3507,212.75,212.69,11.6714676]
[1736127309636,2.7,212.77,212.69,11.6714676]
[1736127310535,2.3506,212.76,212.69,11.6714676]
[1736127311133,2.7,212.77,212.69,11.6714676]
[1736127312444,2.7,212.77,212.71,2.3512]
[1736127313046,11.6714676,212.88,212.75,14.0221676]
[1736127313240,1.5273,212.9,212.78,11.6714676]
[1736127313433,195.462114,212.98,212.81,11.6714676]
[1736127313434,130.308076,212.94,212.81,11.6714676]
[1736127313635,130.308076,212.94,212.87,2.3494]
[1736127314139,130.308076,212.94,212.87,11.6714676]
[1736127314337,130.308076,212.94,212.9,2.349]
[1736127315036,2.7,212.97,212.9,14.0204676]
[1736127315244,2.7,212.97,212.91,2.3489]
[1736127315437,2.7,212.97,212.9,11.6714676]
[1736127315839,2.3484,212.96,212.9,11.6714676]
[1736127316741,2.7,212.97,212.88,2.9898]
[1736127317647,2.7,212.97,212.89,11.6714676]
[1736127318147,2.3484,212.97,212.89,11.6714676]
[1736127318345,1.4645,213.02,212.92,11.6714676]
[1736127318550,2.7,213.01,212.92,11.6714676]
[1736127319149,2.3481,212.99,212.92,11.6714676]
[1736127321453,2.3482,212.98,212.92,11.6714676]
[1736127321653,2.7,213.01,212.92,14.0202676]
[1736127323453,2.7,213.01,212.92,11.6714676]
[1736127323753,2.7,213.01,212.89,13.1504676]
[1736127324554,2.3481,212.99,212.92,11.6714676]
[1736127325055,2.7,213.01,212.92,11.6714676]
[1736127325258,2.7,213.01,212.94,2.3486]
[1736127326056,5.0478,213.01,212.94,2.3486]
[1736127326360,2.3478,213.01,212.94,2.3486]
[1736127326752,2.3478,213.01,212.95,11.6714676]
[1736127327656,5.0477,213.03,212.95,14.0199676]
[1736127327857,2.3477,213.03,212.95,11.6714676]
[1736127328156,11.6714676,213.12,212.98,11.6714676]
[1736127328363,2.3473,213.06,212.98,14.0195676]
[1736127328558,2.3473,213.06,212.98,15.4748676]
[1736127329461,2.3473,213.06,212.99,2.348]
[1736127329960,2.3474,213.05,212.99,2.348]
[1736127330148,2.7,213.09,212.99,2.348]
[1736127330350,2.7,213.09,212.98,13.1267676]
[1736127330652,2.3474,213.06,213.0,2.3479]
[1736127331154,2.3471,213.08,213.01,2.3477]
[1736127331472,2.3471,213.08,213.01,11.6714676]
[1736127332457,2.3471,213.08,213.02,2.3477]
[1736127333262,2.3473,213.07,213.01,11.6714676]
[1736127333467,2.7,213.12,213.01,11.6714676]
[1736127334258,14.3714676,213.12,212.98,14.5831676]
[1736127334464,11.6714676,213.09,212.98,14.5831676]
[1736127335560,2.3476,213.03,212.98,14.5831676]
[1736127335960,2.7,213.06,212.98,14.5831676]
[1736127336159,2.3476,213.03,212.98,13.1267676]
[1736127336362,2.7,213.06,212.98,1.4553]
[1736127336659,2.7,213.06,212.95,11.6714676]
[1736127336867,2.348,213.0,212.95,11.6714676]
[1736127337071,2.348,213.0,212.92,11.6714676]
[1736127337983,2.3482,212.98,212.93,2.3486]
[1736127338263,2.7,213.0,212.89,14.3714676]
[1736127338461,2.7,213.0,212.89,11.6714676]
[1736127338665,2.7,213.0,212.89,14.0206676]
[1736127339964,2.7,212.99,212.89,14.0206676]
[1736127340358,2.3483,212.98,212.91,2.3489]
[1736127340966,2.3483,212.97,212.91,2.3489]
[1736127341468,2.7,212.99,212.89,14.0205676]
[1736127341964,2.7,212.99,212.88,1.4921]
[1736127342364,2.7,212.99,212.89,11.6714676]
[1736127342762,53.74,213.19,212.95,11.6714676]
[1736127343066,2.7,213.06,212.95,11.6714676]
[1736127343268,5.0474,213.06,212.98,2.3481]
[1736127343469,2.7,213.06,212.98,11.6714676]
[1736127343963,9.67959395,213.09,212.98,11.6714676]
[1736127343964,9.6844721,213.09,212.98,11.6714676]
[1736127344169,2.7,213.08,212.98,11.6714676]
[1736127344569,2.3472,213.07,213.0,2.3479]
[1736127344770,2.3472,213.07,212.98,11.6714676]
[1736127345268,2.7,213.08,212.98,11.6714676]
[1736127345861,2.3475,213.04,212.98,11.6714676]
[1736127347973,2.3476,213.03,212.98,11.6714676]
[1736127352274,2.3476,213.03,212.98,14.0196676]
[1736127354377,2.7,213.08,212.98,11.6714676]
[1736127354674,2.7,213.08,212.95,11.6714676]
[1736127355178,2.3475,213.04,212.99,2.3481]
[1736127355373,9.70146758,213.09,213.01,11.6714676]
[1736127355571,3.52390929,213.13,213.04,11.6714676]
[1736127355771,3.52390929,213.14,213.07,11.6714676]
[1736127356374,130.308076,213.15,213.1,2.3468]
[1736127356579,3.52186064,213.14,213.07,11.6714676]
[1736127356774,2.7,213.17,213.07,11.6714676]
[1736127357175,2.3466,213.13,213.07,11.6714676]
[1736127357978,2.3466,213.13,213.07,14.0186676]
[1736127358174,2.3461,213.17,213.07,11.6714676]
[1736127358378,2.3461,213.17,213.1,11.6714676]
[1736127359475,2.3461,213.17,213.11,2.3467]
[1736127359878,2.3459,213.19,213.1,11.6714676]
[1736127360081,2.7,213.2,213.12,2.3466]
[1736127360683,2.3462,213.16,213.1,11.6714676]
[1736127360981,14.3714676,213.2,213.08,1.3917]
[1736127361182,10.48408123,213.19,213.08,1.3917]
[1736127361483,9.72791125,213.19,213.08,1.3917]
[1736127361684,11.6714676,213.17,213.08,1.3917]
[1736127361977,3.52186064,213.16,213.05,2.993]
[1736127362182,6.24186064,213.15,213.05,1.4792]
[1736127362381,15.19332824,213.14,213.05,1.4792]
[1736127362578,9.72791125,213.13,213.05,1.4792]
[1736127362776,2.347,213.1,213.05,1.4792]
[1736127363984,3.52186064,213.11,213.01,11.6714676]
[1736127364180,6.24186064,213.1,212.99,5.6482]
[1736127364380,3.52186064,213.09,212.99,5.6482]
[1736127364981,3.52186064,213.08,212.99,5.6482]
[1736127365183,2.72,213.1,212.99,5.6482]
[1736127365184,3.52186064,213.09,212.99,5.6482]
[1736127365382,2.72,213.1,213.02,11.6714676]
[1736127366989,12.44791125,213.1,213.06,2.3473]
[1736127367187,2.72,213.1,213.06,2.3473]
[1736127367584,2.72,213.1,213.03,2.3476]
[1736127367585,2.347,213.09,213.03,2.3476]
[1736127367787,10.79104574,213.1,213.0,1.53]
[1736127368193,2.3472,213.07,213.02,2.3477]
[1736127368594,2.3472,213.07,213.0,1.53]
[1736127369094,9.72791125,213.08,213.0,1.53]
[1736127369292,9.72791125,213.08,212.86,262.7218342]
[1736127369293,3.52186064,213.08,212.86,68.7218342]
[1736127369594,6.24186064,213.07,212.94,11.6714676]
[1736127369794,2.3475,213.04,212.97,2.3483]
[1736127369989,2.72,213.06,212.97,11.6714676]
[1736127370391,2.72,213.06,212.98,1.4927]
[1736127371197,2.3476,213.03,212.94,11.6714676]
[1736127371800,2.72,213.02,212.94,11.6714676]
[1736127372389,2.72,213.02,212.97,2.3483]
[1736127372589,2.3478,213.01,212.94,11.6714676]
[1736127372795,2.72,213.02,212.94,11.6714676]
[1736127372993,2.348,213.0,212.94,14.0200676]
[1736127375693,2.72,213.02,212.94,11.6714676]
[1736127376295,2.72,213.02,212.91,13.1641676]
[1736127377101,2.72,213.02,212.91,15.5130676]
[1736127377693,2.3483,212.98,212.91,15.5130676]
[1736127377890,2.72,212.97,212.91,15.5130676]
[1736127378296,2.72,212.97,212.91,14.0203676]
[1736127378497,4.96046064,213.05,212.91,11.6714676]
[1736127378696,3.47668227,213.04,212.95,2.3485]
[1736127378894,2.72,213.04,212.95,2.3485]
[1736127379091,2.72,213.03,212.95,2.3485]
[1736127380404,2.3479,213.01,212.95,2.3485]
[1736127381404,2.72,213.0,212.94,2.3486]
[1736127383209,5.068,213.0,212.94,2.3486]
[1736127384497,1.4386,213.05,212.94,11.6714676]
[1736127384702,15.19500356,213.09,212.94,11.6714676]
[1736127384897,2.72,213.08,212.95,2.9028]
[1736127385103,2.3475,213.05,212.95,2.9028]
[1736127385303,2.3475,213.05,212.97,11.6714676]
[1736127385810,2.72,213.04,212.97,11.6714676]
[1736127386010,2.72,213.04,212.99,2.348]
[1736127387011,2.72,213.04,212.96,1.4044]
[1736127387709,2.72,213.04,212.91,11.6714676]
[1736127388110,4.1332,213.04,212.91,11.6714676]
[1736127388613,2.3481,212.99,212.92,2.3487]
[1736127388806,2.72,212.98,212.91,11.6714676]
[1736127390210,2.72,212.98,212.94,2.3485]
[1736127390717,2.72,212.98,212.95,2.3485]
[1736127394214,2.72,212.99,212.95,2.3485]
[1736127394921,2.72,212.99,212.94,11.6714676]
[1736127395113,2.72,212.99,212.98,2.3482]
[1736127395618,2.72,213.02,212.98,2.3482]
[1736127395821,2.72,213.02,212.96,2.3484]
[1736127396014,2.72,213.02,212.94,11.6714676]
[1736127396609,5.0677,213.02,212.97,2.3482]
[1736127396820,5.0677,213.02,212.94,11.6714676]
[1736127397120,2.72,213.02,212.99,2.348]
[1736127398123,2.72,213.03,213.01,2.3478]
[1736127403021,2.72,213.03,213.01,7.45111323]
[1736127403720,7.45111323,213.08,213.0,2.3479]
[1736127403921,2.3475,213.05,213.0,2.3479]
[1736127404219,7.45111323,213.06,212.98,2.3481]
[1736127404417,2.3477,213.03,212.98,7.45111323]
[1736127404621,2.72,213.02,212.98,7.45111323]
[1736127405230,2.72,213.02,212.96,7.45111323]
[1736127407426,2.348,213.0,212.96,7.45111323]
[1736127407623,2.72,213.02,212.96,7.45111323]
[1736127407825,10.17111323,213.02,212.96,7.45111323]
[1736127408122,10.17111323,213.02,212.92,2.3487]
[1736127408325,10.17111323,213.02,212.94,7.45111323]
[1736127409523,2.3481,212.99,212.94,7.45111323]